bitfinex/quotes_BTCUSD_20250615
["timestamp","ask_amount","ask_price","bid_price","bid_amount"]
[1750027362117,0.73678924,105220.0,105210.0,0.04090792]
[1750027362327,0.73678924,105220.0,105210.0,0.03202756]
[1750027362532,0.73878924,105220.0,105210.0,0.03202756]
[1750027363189,0.73878924,105220.0,105210.0,0.04090787]
[1750027364069,0.73878924,105220.0,105210.0,0.03202756]
[1750027364281,0.73878924,105220.0,105210.0,0.04090762]
[1750027364282,0.74078924,105220.0,105210.0,0.04090762]
[1750027364500,0.344,105220.0,105210.0,0.04090752]
[1750027364712,0.74078924,105220.0,105210.0,0.0409075]
[1750027364919,0.344,105220.0,105210.0,0.04978744]
[1750027365138,0.74078924,105220.0,105210.0,0.07998682]
[1750027365369,0.344,105220.0,105210.0,0.17942006]
[1750027365581,0.004,105220.0,105210.0,0.17622579]
[1750027366006,0.004,105220.0,105210.0,0.17622481]
[1750027366428,0.344,105220.0,105210.0,0.17622462]
[1750027366676,0.344,105220.0,105210.0,0.17622464]
[1750027366886,0.344,105220.0,105210.0,0.17622466]
[1750027367361,0.004,105220.0,105210.0,0.17860067]
[1750027367573,0.004,105220.0,105210.0,0.16084531]
[1750027367790,0.004,105220.0,105210.0,0.27077046]
[1750027368009,0.004,105220.0,105210.0,0.57301122]
[1750027368218,0.002,105220.0,105210.0,0.55525856]
[1750027368432,0.34,105230.0,105220.0,0.0605]
[1750027368647,0.34,105230.0,105220.0,0.17449239]
[1750027368856,0.34,105230.0,105220.0,0.17449257]
[1750027369073,0.34,105230.0,105220.0,0.15674176]
[1750027369315,0.34,105230.0,105220.0,0.17449276]
[1750027369514,0.34,105230.0,105220.0,0.15674176]
[1750027369834,0.34,105230.0,105220.0,0.17449366]
[1750027370254,0.34,105230.0,105220.0,0.15674176]
[1750027372195,0.34,105240.0,105230.0,0.0649]
[1750027372580,0.73678924,105240.0,105230.0,0.0649]
[1750027372782,0.34,105240.0,105230.0,0.0649]
[1750027373203,0.41651327,105240.0,105230.0,0.0649]
[1750027373480,0.73678924,105240.0,105230.0,0.0649]
[1750027373672,0.73878924,105240.0,105230.0,0.0649]
[1750027373883,0.74078924,105240.0,105230.0,0.0649]
[1750027379563,0.344,105240.0,105230.0,0.16114176]
[1750027380765,0.004,105240.0,105230.0,0.75986929]
[1750027380982,0.004,105240.0,105230.0,0.87768664]
[1750027381183,0.004,105240.0,105230.0,0.88718936]
[1750027381387,0.004,105240.0,105230.0,0.87768664]
[1750027381592,0.002,105240.0,105230.0,0.87768664]
[1750027381816,0.002,105240.0,105230.0,0.88718936]
[1750027382074,0.002,105240.0,105230.0,0.87768664]
[1750027382496,0.002,105240.0,105230.0,0.88718936]
[1750027382706,0.002,105240.0,105230.0,0.89669199]
[1750027382919,0.002,105240.0,105230.0,1.09921199]
[1750027383123,0.37811425,105260.0,105250.0,0.0623]
[1750027383351,0.37811425,105260.0,105250.0,0.61702176]
[1750027384306,0.37858637,105260.0,105250.0,0.61702176]
[1750027385755,0.37858637,105260.0,105250.0,0.65982176]
[1750027385756,0.03858637,105260.0,105250.0,0.65982176]
[1750027386363,0.03858637,105260.0,105250.0,0.45734176]
[1750027386529,0.03858637,105260.0,105250.0,0.65982176]
[1750027391999,0.43537561,105260.0,105250.0,0.62898176]
[1750027392433,0.03858637,105260.0,105250.0,0.66048176]
[1750027392849,0.03858637,105260.0,105250.0,0.61768176]
[1750027393065,0.03858637,105260.0,105250.0,0.45804176]
[1750027393311,0.03858637,105260.0,105250.0,0.66048176]
[1750027397393,0.03858637,105260.0,105250.0,0.45804176]
[1750027397636,0.03858637,105260.0,105250.0,1.13782003]
[1750027397856,0.03858637,105260.0,105250.0,0.47258261]
[1750027398066,0.03858637,105260.0,105250.0,0.67498261]
[1750027398249,0.03858637,105260.0,105250.0,0.47258261]
[1750027398705,0.03858637,105260.0,105250.0,0.66044176]
[1750027399870,0.03858637,105260.0,105250.0,0.45804176]
[1750027400074,0.03858637,105260.0,105250.0,0.66044176]
[1750027403000,0.03858637,105260.0,105250.0,0.66040176]
[1750027403204,0.03858637,105260.0,105250.0,0.45804176]
[1750027403450,0.03858637,105260.0,105250.0,0.66040176]
[1750027404080,0.03858637,105260.0,105250.0,0.45804176]
[1750027404293,0.03858637,105260.0,105250.0,0.66040176]
[1750027404755,0.03858637,105260.0,105250.0,0.39504176]
[1750027404963,0.57471317,105260.0,105250.0,0.59740176]
[1750027405197,0.49717561,105260.0,105250.0,0.59740176]
[1750027405445,0.46617561,105260.0,105250.0,0.59740176]
[1750027405651,0.03858637,105260.0,105250.0,0.59740176]
[1750027406876,0.49797561,105260.0,105250.0,0.59740176]
[1750027407522,0.46547561,105260.0,105250.0,0.59740176]
[1750027407731,0.43537561,105260.0,105250.0,0.59740176]
[1750027408146,0.03858637,105260.0,105250.0,0.59740176]
[1750027408588,0.03858637,105260.0,105250.0,0.39504176]
[1750027408790,0.03858637,105260.0,105250.0,0.55460176]
[1750027409418,0.43537561,105260.0,105250.0,0.55460176]
[1750027410127,0.03858637,105260.0,105250.0,0.55460176]
[1750027410340,0.43537561,105260.0,105250.0,0.55460176]
[1750027410560,0.51902317,105260.0,105240.0,0.39988337]
[1750027410768,0.51902317,105260.0,105250.0,0.15956]
[1750027412355,0.51902317,105260.0,105240.0,0.49612513]
[1750027412356,0.58042317,105260.0,105240.0,0.49612513]
[1750027412582,0.58042317,105260.0,105240.0,0.39504176]
[1750027412583,0.39678924,105250.0,105240.0,0.39504176]
[1750027412796,0.79818924,105250.0,105230.0,0.03768337]
[1750027413010,0.79818924,105250.0,105240.0,0.15956]
[1750027413658,0.79818924,105250.0,105240.0,0.18942018]
[1750027414904,0.82652263,105250.0,105240.0,0.18942018]
[1750027415153,0.42973339,105250.0,105240.0,0.18942018]
[1750027415367,0.82652263,105250.0,105240.0,0.18942018]
[1750027415794,0.82652263,105250.0,105240.0,0.15956]
[1750027419294,0.82652263,105250.0,105240.0,0.15952]
[1750027419515,0.82652263,105250.0,105240.0,0.15704]
[1750027419989,0.82652263,105250.0,105240.0,0.15952]
[1750027420670,0.82652263,105250.0,105230.0,0.2988]
[1750027420862,0.51909189,105250.0,105240.0,0.15952]
[1750027422067,0.91588113,105250.0,105240.0,0.15952]
[1750027423691,0.76512263,105250.0,105240.0,0.15952]
[1750027424545,0.36833339,105250.0,105230.0,0.3619]
[1750027424763,0.36833339,105250.0,105240.0,0.19042]
[1750027424967,0.36833339,105250.0,105240.0,0.22192]
[1750027426108,0.36833339,105250.0,105240.0,0.19042]
[1750027426109,0.76512263,105250.0,105240.0,0.19042]
[1750027426318,0.76512263,105250.0,105240.0,0.15952]
[1750027428079,0.85162403,105250.0,105240.0,0.15952]
[1750027429151,0.76512263,105250.0,105240.0,0.15952]
[1750027429540,0.76512263,105250.0,105240.0,0.19122]
[1750027430433,0.36833339,105250.0,105240.0,0.22192]
[1750027430646,0.36833339,105250.0,105240.0,0.31816176]
[1750027431715,0.02833339,105250.0,105240.0,0.31816176]
[1750027431924,0.37849133,105260.0,105250.0,0.0599]
[1750027432130,0.37849133,105260.0,105250.0,0.15614176]
[1750027433183,0.38249133,105260.0,105250.0,0.15614176]
[1750027435900,0.38249133,105260.0,105250.0,0.45494176]
[1750027438207,0.004,105260.0,105250.0,0.45494176]
[1750027438466,0.004,105260.0,105250.0,0.51638794]
[1750027441528,0.04311921,105260.0,105250.0,0.45494176]
[1750027441767,0.344,105260.0,105250.0,0.45494176]
[1750027443500,0.342,105260.0,105250.0,0.45494176]
[1750027443743,0.002,105260.0,105250.0,0.45694176]
[1750027444281,0.34,105260.0,105250.0,0.45694176]
[1750027444806,0.37810415,105260.0,105250.0,0.65906176]
[1750027445062,0.37810415,105260.0,105250.0,0.45794176]
[1750027445332,0.03810415,105260.0,105250.0,1.15300022]
[1750027445556,0.34,105270.0,105260.0,0.0595]
[1750027445815,0.34,105270.0,105260.0,0.1558314]
[1750027446294,0.028564,105280.0,105260.0,0.1558314]
[1750027446501,0.37895435,105270.0,105260.0,0.20675126]
[1750027446711,0.34,105270.0,105260.0,0.36615126]
[1750027446925,0.37905096,105270.0,105260.0,0.36615126]
[1750027448754,0.37905096,105270.0,105260.0,0.3152314]
[1750027450178,0.37905096,105270.0,105260.0,0.1558314]
[1750027450435,0.37905096,105270.0,105260.0,0.3151914]
[1750027450872,0.37905096,105270.0,105260.0,0.6139914]
[1750027451110,0.7758402,105270.0,105260.0,0.6139914]
[1750027452158,0.37905096,105270.0,105260.0,0.6139914]
[1750027452380,0.37905096,105270.0,105260.0,0.68248891]
[1750027452826,0.37905096,105270.0,105260.0,0.6139914]
[1750027453088,0.7758402,105270.0,105260.0,0.6139914]
[1750027454172,0.37905096,105270.0,105260.0,0.6139914]
[1750027457016,0.028564,105280.0,105260.0,1.20078634]
[1750027457280,0.03915865,105290.0,105280.0,0.27576394]
[1750027457528,0.028554,105320.0,105300.0,0.0594]
[1750027457791,0.13698936,105330.0,105310.0,0.652351]
[1750027458047,0.028549,105340.0,105320.0,0.39678924]
[1750027458306,0.03939825,105330.0,105320.0,0.20652639]
[1750027458527,0.07558936,105350.0,105320.0,0.17825541]
[1750027458528,0.52952851,105350.0,105320.0,0.17825541]
[1750027458768,0.51161145,105350.0,105330.0,0.15932]
[1750027459001,0.42608924,105340.0,105330.0,0.15932]
[1750027459243,0.48779697,105340.0,105330.0,0.15932]
[1750027459477,0.77500383,105340.0,105330.0,0.15932]
[1750027459688,0.34,105330.0,105320.0,0.09624176]
[1750027459952,0.73678924,105330.0,105320.0,0.25556176]
[1750027460412,0.73678924,105330.0,105320.0,0.25552176]
[1750027460650,0.73678924,105330.0,105320.0,0.09624176]
[1750027460928,0.73678924,105330.0,105320.0,0.25552176]
[1750027461160,0.73678924,105330.0,105320.0,0.15928]
[1750027461402,0.73678924,105330.0,105320.0,0.001]
[1750027461634,0.84887607,105330.0,105320.0,0.001]
[1750027461870,0.88869157,105330.0,105320.0,0.002]
[1750027462100,0.88869215,105330.0,105320.0,0.002]
[1750027462328,0.89537963,105330.0,105320.0,0.002]
[1750027462558,0.07520379,105330.0,105320.0,0.002]
[1750027462797,0.79638924,105330.0,105320.0,0.002]
[1750027463035,0.80307652,105330.0,105320.0,0.001]
[1750027463274,0.80530562,105330.0,105310.0,0.15928]
[1750027463519,0.39678924,105320.0,105310.0,0.15928]
[1750027463758,0.40570563,105320.0,105310.0,0.15928]
[1750027463988,0.43425567,105320.0,105310.0,0.15928]
[1750027464655,0.43425568,105320.0,105310.0,0.15928]
[1750027464979,0.42533924,105320.0,105310.0,0.15928]
[1750027465212,0.43425568,105320.0,105310.0,0.15928]
[1750027465466,0.43425568,105320.0,105310.0,0.16028]
[1750027465698,0.03746598,105320.0,105310.0,0.732883]
[1750027465920,0.001,105330.0,105310.0,0.762183]
[1750027466132,0.39678924,105330.0,105310.0,0.40799376]
[1750027466344,0.40570473,105330.0,105310.0,0.35892176]
[1750027466803,0.40570476,105330.0,105310.0,0.35792176]
[1750027467060,0.40570476,105330.0,105310.0,0.35692176]
[1750027467304,0.39878924,105330.0,105310.0,0.35692176]
[1750027467552,0.40770476,105330.0,105310.0,0.29812176]
[1750027467796,0.34,105320.0,105310.0,0.29812176]
[1750027468505,0.34,105320.0,105310.0,0.59692176]
[1750027468939,0.39878924,105330.0,105310.0,0.62802176]
[1750027469168,0.39878924,105330.0,105310.0,0.65922176]
[1750027469388,0.39778924,105330.0,105310.0,0.65922176]
[1750027469868,0.40670466,105330.0,105310.0,0.72614394]
[1750027470100,0.00991533,105330.0,105310.0,0.74865403]
[1750027470328,0.001,105330.0,105320.0,0.15691534]
[1750027470994,0.002,105330.0,105320.0,0.15454176]
[1750027471180,0.001,105330.0,105320.0,0.15454176]
[1750027471435,0.001,105330.0,105320.0,0.23568866]
[1750027471651,0.002,105330.0,105320.0,0.23568866]
[1750027472115,0.001,105330.0,105320.0,0.53448866]
[1750027472345,0.001,105330.0,105320.0,0.95378118]
[1750027472631,0.002,105330.0,105320.0,0.95378118]
[1750027473075,0.002,105330.0,105320.0,1.16771435]
[1750027473535,0.002,105330.0,105320.0,1.18670364]
[1750027473766,0.002,105330.0,105320.0,1.23396337]
[1750027474441,0.002,105330.0,105320.0,1.22446913]
[1750027474673,0.002,105330.0,105320.0,1.23396337]
[1750027474929,0.001,105330.0,105320.0,1.47624032]
[1750027475152,0.00014172,105350.0,105340.0,0.22338774]
[1750027475388,0.00014172,105350.0,105340.0,1.04485526]
[1750027475618,0.03831805,105350.0,105340.0,1.08244756]
[1750027475848,0.03831805,105350.0,105340.0,1.11991385]
[1750027476078,0.00014172,105350.0,105340.0,1.11991385]
[1750027476315,0.00014172,105350.0,105340.0,1.12940637]
[1750027476543,0.00114172,105350.0,105340.0,1.12940637]
[1750027477010,0.00114172,105350.0,105340.0,1.10472334]
[1750027477235,0.00114172,105350.0,105340.0,1.07662356]
[1750027477236,0.00214172,105350.0,105340.0,1.07662356]
[1750027477471,0.00114172,105350.0,105340.0,1.13300491]
[1750027477743,0.00114172,105350.0,105340.0,1.14553853]
[1750027477975,0.00114172,105350.0,105340.0,1.14653853]
[1750027478198,0.00114172,105350.0,105340.0,1.14553853]
[1750027478199,0.00014172,105350.0,105340.0,1.14553853]
[1750027478640,0.00014172,105350.0,105340.0,1.15353853]
[1750027479300,0.00014172,105350.0,105340.0,1.15853853]
[1750027479760,0.07558936,105390.0,105370.0,0.2087877]
[1750027479992,0.07606226,105390.0,105380.0,0.93351865]
[1750027480224,0.0004729,105390.0,105380.0,0.7664708]
[1750027480462,0.0004729,105390.0,105380.0,0.41334252]
[1750027480692,0.0004729,105390.0,105380.0,1.01518255]
[1750027480931,0.0004729,105390.0,105380.0,1.08105431]
[1750027481162,0.01238004,105390.0,105380.0,1.16220121]
[1750027481390,0.01237999,105390.0,105380.0,1.16220121]
[1750027481608,0.01337997,105390.0,105380.0,1.16220121]
[1750027481863,0.0044729,105390.0,105380.0,0.57888617]
[1750027482096,0.01237997,105390.0,105380.0,0.22309971]
[1750027482341,0.0123804,105390.0,105380.0,0.22609971]
[1750027482579,0.07906226,105390.0,105380.0,0.16426504]
[1750027482806,0.0879713,105390.0,105380.0,0.30088176]
[1750027483019,0.07906226,105390.0,105380.0,0.14176176]
[1750027483274,0.50300204,105390.0,105380.0,0.09924176]
[1750027483505,0.55840204,105390.0,105380.0,0.09924176]
[1750027483732,0.49005492,105390.0,105380.0,0.25836176]
[1750027483960,0.47446226,105390.0,105380.0,0.25836176]
[1750027484194,0.48337225,105390.0,105380.0,0.25836176]
[1750027484415,0.4821449,105390.0,105380.0,0.25836176]
[1750027484643,0.49105509,105390.0,105380.0,0.25836176]
[1750027484878,0.3503831,105390.0,105380.0,0.25536176]
[1750027485172,0.35038279,105390.0,105380.0,0.25536176]
[1750027485396,0.35138248,105390.0,105380.0,0.25536176]
[1750027485622,0.35138234,105390.0,105380.0,0.25288176]
[1750027485848,0.35038234,105390.0,105380.0,0.25288176]
[1750027486073,0.35038229,105390.0,105380.0,0.25288176]
[1750027486300,0.35338229,105390.0,105380.0,0.25288176]
[1750027486527,0.3444729,105390.0,105380.0,0.2752969]
[1750027486991,0.39176165,105390.0,105380.0,0.2752969]
[1750027487213,0.39176169,105390.0,105380.0,0.2752969]
[1750027487468,0.3917617,105390.0,105380.0,0.25288176]
[1750027487819,0.39176171,105390.0,105380.0,0.25288176]
[1750027488019,0.39176172,105390.0,105380.0,0.25288176]
[1750027488455,0.3444729,105390.0,105380.0,0.25288176]
[1750027488859,0.3533824,105390.0,105380.0,0.25288176]
[1750027489015,0.3444729,105390.0,105380.0,0.25288176]
[1750027489616,0.35338224,105390.0,105380.0,0.25288176]
[1750027489826,0.3444729,105390.0,105380.0,0.27528768]
[1750027490030,0.35338217,105390.0,105380.0,0.27528768]
[1750027490250,0.35338216,105390.0,105380.0,0.25288176]
[1750027490463,0.3444729,105390.0,105380.0,0.36470531]
[1750027490668,0.013382,105390.0,105380.0,0.33638513]
[1750027490881,0.0044729,105390.0,105380.0,0.33638513]
[1750027491294,0.01338188,105390.0,105380.0,0.33638513]
[1750027491556,0.01338149,105390.0,105380.0,0.33638513]
[1750027491763,0.0044729,105390.0,105380.0,0.53566392]
[1750027491976,0.01338139,105390.0,105380.0,1.33623804]
[1750027492197,0.0044729,105390.0,105380.0,1.36425186]
[1750027492406,0.0133804,105390.0,105380.0,1.36425186]
[1750027492618,0.01338031,105390.0,105380.0,1.36425186]
[1750027492839,0.0044729,105390.0,105380.0,1.40160362]
[1750027493253,0.01338033,105390.0,105380.0,1.36425186]
[1750027493476,0.01338033,105390.0,105380.0,0.89599652]
[1750027493698,0.01338035,105390.0,105380.0,0.5186198]
[1750027493922,0.0044729,105390.0,105380.0,0.7202198]
[1750027494148,0.01338082,105390.0,105380.0,0.7202198]
[1750027494360,0.0044729,105390.0,105380.0,0.66980261]
[1750027494571,0.01338106,105390.0,105380.0,0.66980261]
[1750027494849,0.0044729,105390.0,105380.0,0.66980261]
[1750027495556,0.0044729,105390.0,105380.0,0.69781643]
[1750027495768,0.0044729,105390.0,105380.0,0.45057558]
[1750027495978,0.0044729,105390.0,105380.0,0.59416176]
[1750027496588,0.0044729,105390.0,105380.0,0.09376176]
[1750027496800,0.0044729,105390.0,105380.0,0.29536176]
[1750027502216,0.0044729,105390.0,105380.0,0.32337558]
[1750027502464,0.0044729,105390.0,105380.0,0.59354365]
[1750027502683,0.0044729,105390.0,105380.0,1.04600959]
[1750027502909,0.0044729,105390.0,105380.0,1.07402341]
[1750027503133,0.0044729,105390.0,105380.0,1.03667165]
[1750027503347,0.0044729,105390.0,105380.0,1.13282087]
[1750027503605,0.00123,105390.0,105380.0,1.84076837]
[1750027503836,0.0307,105450.0,105410.0,0.26061499]
[1750027503837,0.06962702,105450.0,105410.0,0.26061499]
[1750027504074,0.41573125,105440.0,105420.0,0.32845893]
[1750027504350,0.42455803,105440.0,105420.0,0.32845893]
[1750027504576,0.42455807,105440.0,105420.0,0.32845893]
[1750027505055,0.42455805,105440.0,105420.0,0.32845893]
[1750027505272,0.42455806,105440.0,105420.0,0.32845893]
[1750027505492,0.42455806,105440.0,105420.0,0.37598301]
[1750027505710,0.46255891,105440.0,105420.0,0.37598301]
[1750027506359,0.46065341,105440.0,105430.0,0.15912]
[1750027506584,0.4695589,105440.0,105420.0,0.12436771]
[1750027506810,0.38506405,105440.0,105430.0,0.25532176]
[1750027507074,0.42616954,105440.0,105420.0,0.42316771]
[1750027507530,0.42616954,105440.0,105430.0,0.15904]
[1750027507531,0.81777026,105440.0,105430.0,0.15904]
[1750027507743,0.45156974,105440.0,105430.0,0.15904]
[1750027508180,0.45456974,105440.0,105430.0,0.15904]
[1750027508606,0.45456978,105440.0,105430.0,0.15904]
[1750027508821,0.43866405,105440.0,105430.0,0.15904]
[1750027509058,0.44756978,105440.0,105430.0,0.15904]
[1750027509271,0.41646405,105440.0,105430.0,0.15904]
[1750027509489,0.42536978,105440.0,105430.0,0.15904]
[1750027509707,0.41646405,105440.0,105430.0,0.15904]
[1750027509928,0.42536978,105440.0,105430.0,0.15904]
[1750027510147,0.44746405,105440.0,105430.0,0.15904]
[1750027510369,0.45636979,105440.0,105430.0,0.15904]
[1750027510694,0.45636977,105440.0,105430.0,0.15904]
[1750027510820,0.44746405,105440.0,105430.0,0.15904]
[1750027511067,0.45636978,105440.0,105430.0,0.15904]
[1750027511288,0.44746405,105440.0,105430.0,0.15904]
[1750027511512,0.45636965,105440.0,105430.0,0.15904]
[1750027511724,0.44746405,105440.0,105430.0,0.15904]
[1750027511962,0.45636965,105440.0,105430.0,0.15904]
[1750027512180,0.39696968,105440.0,105430.0,0.21870018]
[1750027512402,0.39696968,105440.0,105430.0,0.15904]
[1750027512646,0.3969696,105440.0,105430.0,0.15904]
[1750027513082,0.38806405,105440.0,105430.0,0.15904]
[1750027513557,0.39696971,105440.0,105430.0,0.15904]
[1750027514004,0.38806405,105440.0,105430.0,0.15904]
[1750027514230,0.39696971,105440.0,105430.0,0.15904]
[1750027514454,0.38806405,105440.0,105430.0,0.15904]
[1750027514698,0.39696972,105440.0,105430.0,0.21870018]
[1750027514923,0.38806405,105440.0,105430.0,0.31494194]
[1750027515142,0.39696927,105440.0,105430.0,0.31494194]
[1750027515355,0.38806405,105440.0,105430.0,0.31494194]
[1750027515577,0.39696911,105440.0,105430.0,0.31494194]
[1750027515818,0.39696911,105440.0,105430.0,0.61374194]
[1750027516033,0.38806405,105440.0,105430.0,0.61374194]
[1750027516246,0.39696911,105440.0,105430.0,0.61374194]
[1750027516461,0.38806405,105440.0,105430.0,0.67274194]
[1750027516677,0.05696896,105440.0,105430.0,0.67274194]
[1750027516890,0.05696873,105440.0,105430.0,0.67274194]
[1750027517129,0.05696877,105440.0,105430.0,0.67274194]
[1750027517348,0.04806405,105440.0,105430.0,0.67274194]
[1750027517798,0.04806405,105440.0,105430.0,0.48420194]
[1750027518024,0.42017026,105440.0,105430.0,0.39504176]
[1750027518478,0.42907572,105440.0,105430.0,0.4578]
[1750027518689,0.49027573,105440.0,105430.0,0.2988]
[1750027518904,0.49027572,105440.0,105430.0,0.4578]
[1750027519125,0.49027586,105440.0,105430.0,0.4578]
[1750027519348,0.84319783,105440.0,105430.0,0.4578]
[1750027519566,0.85210358,105440.0,105430.0,0.4578]
[1750027519811,0.87229783,105440.0,105430.0,0.4578]
[1750027520020,0.88120361,105440.0,105430.0,0.4578]
[1750027520239,0.88120361,105440.0,105430.0,0.2988]
[1750027520456,0.79817604,105440.0,105430.0,0.4578]
[1750027520676,0.79817604,105440.0,105430.0,0.2988]
[1750027520905,0.79817604,105440.0,105430.0,0.4578]
[1750027521119,0.78927026,105440.0,105430.0,0.4578]
[1750027521339,0.79817604,105440.0,105430.0,0.4578]
[1750027521560,0.42606983,105440.0,105430.0,0.4578]
[1750027521781,0.41716405,105440.0,105430.0,0.159]
[1750027521999,0.42606985,105440.0,105430.0,0.159]
[1750027522242,0.42606985,105440.0,105410.0,0.08727787]
[1750027522243,0.79817606,105440.0,105410.0,0.08727787]
[1750027522448,0.87978367,105440.0,105420.0,0.29776176]
[1750027522660,0.87087787,105440.0,105420.0,0.31276176]
[1750027522881,0.79817606,105440.0,105420.0,0.31276176]
[1750027523099,0.78817607,105440.0,105420.0,0.31276176]
[1750027523316,0.41606987,105440.0,105420.0,0.31276176]
[1750027523532,0.42606987,105440.0,105420.0,0.31276176]
[1750027523971,0.42116405,105440.0,105420.0,0.35276572]
[1750027524622,0.43006987,105440.0,105420.0,0.35276572]
[1750027525055,0.42116405,105440.0,105420.0,0.35276572]
[1750027525267,0.43306987,105440.0,105420.0,0.35276572]
[1750027525993,0.79627026,105440.0,105420.0,0.11124176]
[1750027526213,0.82027608,105440.0,105430.0,0.159]
[1750027526427,0.82027636,105440.0,105430.0,0.159]
[1750027526642,0.82027645,105440.0,105420.0,0.29776176]
[1750027527085,0.8993041,105440.0,105420.0,0.29776176]
[1750027527305,0.88530408,105440.0,105420.0,0.29776176]
[1750027527535,0.8923041,105440.0,105420.0,0.29776176]
[1750027527757,0.89230409,105440.0,105420.0,0.59656176]
[1750027527975,0.80327644,105440.0,105420.0,0.59656176]
[1750027528219,0.77417641,105440.0,105420.0,0.59656176]
[1750027528435,0.77717641,105440.0,105420.0,0.59656176]
[1750027528655,0.77717632,105440.0,105420.0,0.59656176]
[1750027528885,0.77417632,105440.0,105420.0,0.59656176]
[1750027529105,0.79667632,105440.0,105420.0,0.59656176]
[1750027529329,0.76017026,105440.0,105420.0,0.62906176]
[1750027529554,0.39697023,105440.0,105430.0,0.0164]
[1750027529819,0.39697023,105440.0,105430.0,0.12894176]
[1750027529820,0.39696987,105440.0,105430.0,0.12894176]
[1750027530035,0.39696973,105440.0,105430.0,0.12894176]
[1750027530247,0.39696973,105440.0,105430.0,0.19186794]
[1750027530461,0.38996973,105440.0,105430.0,0.19186794]
[1750027530680,0.3899696,105440.0,105430.0,0.19186794]
[1750027530892,0.3969696,105440.0,105430.0,0.19186794]
[1750027531140,0.38806405,105440.0,105430.0,0.12894176]
[1750027531779,0.39696943,105440.0,105430.0,0.12894176]
[1750027532000,0.39696934,105440.0,105430.0,0.12894176]
[1750027532217,0.39396934,105440.0,105430.0,0.12894176]
[1750027532437,0.39696934,105440.0,105430.0,0.12894176]
[1750027532652,0.39696926,105440.0,105430.0,0.12894176]
[1750027532866,0.38806405,105440.0,105430.0,0.19843066]
[1750027533101,0.39696924,105440.0,105430.0,0.19843066]
[1750027533319,0.39696925,105440.0,105430.0,0.19843066]
[1750027533573,0.39696928,105440.0,105430.0,0.42774176]
[1750027534014,0.39696935,105440.0,105430.0,0.42774176]
[1750027534231,0.39696936,105440.0,105430.0,0.42774176]
[1750027534474,0.39696934,105440.0,105430.0,0.42774176]
[1750027534902,0.38806405,105440.0,105430.0,0.42774176]
[1750027535131,0.05696934,105440.0,105430.0,0.49723066]
[1750027535350,0.04806405,105440.0,105430.0,0.52535661]
[1750027537897,0.04806405,105440.0,105430.0,0.56285788]
[1750027538770,0.04806405,105440.0,105430.0,0.56292425]
[1750027540817,0.01014189,105440.0,105430.0,0.76210853]
[1750027541240,0.01014189,105440.0,105430.0,0.56292425]
[1750027541881,0.00714189,105440.0,105430.0,0.56292425]
[1750027542523,0.00014189,105440.0,105430.0,0.56292425]
[1750027542729,0.00314189,105440.0,105430.0,0.57240921]
[1750027542942,0.00314189,105440.0,105430.0,0.56292425]
[1750027543797,0.00314189,105440.0,105430.0,0.5774651]
[1750027544443,0.00314189,105440.0,105430.0,0.78613389]
[1750027544651,0.00314189,105440.0,105430.0,1.1582401]
[1750027544874,0.00314189,105440.0,105430.0,1.16367727]
[1750027545300,0.00314189,105440.0,105430.0,1.21992918]
[1750027545504,0.00314189,105440.0,105430.0,1.21044476]
[1750027546174,0.00314189,105440.0,105430.0,1.21992927]
[1750027546378,0.00314189,105440.0,105430.0,1.21992936]
[1750027546800,0.00314189,105440.0,105430.0,1.21044476]
[1750027547021,0.00314189,105440.0,105430.0,1.20466999]
[1750027547658,0.00314189,105440.0,105430.0,0.8331625]
[1750027549615,0.00314189,105440.0,105430.0,1.20466999]
[1750027550961,0.00314189,105440.0,105430.0,0.8331625]
[1750027551613,0.00314189,105440.0,105430.0,0.77639059]
[1750027552708,0.00314189,105440.0,105430.0,0.76690626]
[1750027552920,0.00314189,105440.0,105430.0,0.77639059]
[1750027554881,0.00314189,105440.0,105430.0,0.8326425]
[1750027555130,0.00314189,105440.0,105430.0,1.20414999]
[1750027556229,0.00314189,105440.0,105430.0,1.24236455]
[1750027556499,0.00314189,105440.0,105430.0,1.20414999]
[1750027556712,0.00314189,105440.0,105430.0,1.16664872]
[1750027557563,0.00014189,105440.0,105430.0,1.16664872]
[1750027557786,0.00014189,105440.0,105430.0,1.16764872]
[1750027557997,0.00114189,105440.0,105430.0,1.16764872]
[1750027558224,0.02890327,105470.0,105460.0,0.031]
[1750027558450,0.02890327,105470.0,105460.0,0.74197132]
[1750027558700,0.02890327,105470.0,105460.0,0.34318261]
[1750027559354,0.02890327,105470.0,105460.0,0.32864176]
[1750027560031,0.03390327,105470.0,105460.0,0.32864176]
[1750027560275,0.07149345,105470.0,105460.0,0.32864176]
[1750027560528,0.07449345,105470.0,105460.0,0.32864176]
[1750027560751,0.03190327,105470.0,105460.0,0.32864176]
[1750027561232,0.03290327,105470.0,105460.0,0.32864176]
[1750027562675,0.07122345,105470.0,105460.0,0.32864176]
[1750027563083,0.03290327,105470.0,105460.0,0.32864176]
[1750027563305,0.03290327,105470.0,105460.0,0.39269066]
[1750027563946,0.07096891,105470.0,105460.0,0.39269066]
[1750027564162,0.03290327,105470.0,105460.0,0.39269066]
[1750027565007,0.03290327,105470.0,105460.0,0.29764176]
[1750027565222,0.03290327,105470.0,105460.0,0.13872176]
[1750027565435,0.06540327,105470.0,105460.0,0.29760176]
[1750027565860,0.06540327,105470.0,105460.0,0.09624176]
[1750027566071,0.06540327,105470.0,105460.0,0.29760176]
[1750027566690,0.06540327,105470.0,105460.0,0.09624176]
[1750027566903,0.10446009,105470.0,105460.0,0.14830594]
[1750027567106,0.07196009,105470.0,105460.0,0.30718594]
[1750027568135,0.49930769,105470.0,105460.0,0.29776176]
[1750027568567,0.83930769,105470.0,105460.0,0.29776176]
[1750027569014,0.83930769,105470.0,105460.0,0.59541987]
[1750027569453,0.41196009,105470.0,105460.0,0.39389987]
[1750027569682,0.41196009,105470.0,105460.0,0.59545987]
[1750027569902,0.41196009,105470.0,105460.0,0.68834005]
[1750027570393,0.41196009,105470.0,105460.0,0.61075987]
[1750027571044,0.41196009,105470.0,105460.0,0.59545987]
[1750027571477,0.80820769,105470.0,105460.0,0.39389987]
[1750027571754,0.84020769,105470.0,105460.0,0.39389987]
[1750027571976,0.84020769,105470.0,105460.0,0.49929811]
[1750027574967,0.84020769,105470.0,105460.0,0.20164]
[1750027575672,0.84020769,105470.0,105440.0,0.06849498]
[1750027575901,0.3962476,105460.0,105450.0,0.29780176]
[1750027576123,0.3962476,105460.0,105450.0,0.09624176]
[1750027576335,0.3962476,105460.0,105450.0,0.29768176]
[1750027576858,0.3962476,105460.0,105450.0,0.09624176]
[1750027577087,0.4279476,105460.0,105450.0,0.29864176]
[1750027577333,0.3962476,105460.0,105450.0,0.29864176]
[1750027577820,0.3962476,105460.0,105450.0,0.33535543]